Cogmind - Beta 10.1 @@@ ROGUE MODE // 2021.07.04 @ 15:55:02 // Winter2019/RPGLIKE Player: Farfid Result: Self-destructed Performance ------------- Evolutions (1) 500 Regions Visited (5) 1000 Robots Destroyed (44) 220 Value Destroyed (1093) 1093 Prototype IDs (31) 620 Alien Tech Used (0) 0 Bonus (268) 268 TOTAL SCORE: 3701 Bonus ------- Follower Combat Kills 131 Aligned with FarCom 300 Friendly Fire -163 Cogmind --------- Core Integrity 700/700 Matter 290/300 Energy 148/150 System Corruption 0% Temperature Cool (0) Movement Rolling (80) Location -9/Exiles Parts ------- > --- POWER (1) -------- Light Angular Momentum Engine > --- PROPULSION (2) --- Wheel Wheel > --- UTILITY (2) ------ Disposable Heat Sink > --- WEAPON (3) ------- Particle Cannon Particle Cannon Particle Cannon > --- INVENTORY (2) ---- Protomatter-50 Protomatter-48 Peak State ------------ > --- POWER ------------ Light Angular Momentum Engine > --- PROPULSION ------- Wheel Wheel > --- UTILITY ---------- Disposable Heat Sink Supersonic Drone Bay > --- WEAPON ----------- Particle Cannon Particle Cannon Particle Cannon > --- INVENTORY -------- Protomatter Protomatter [Rating: 23] Favorites ----------- Power Light Angular Momentum Engine Engine Light Angular Momentum Engine Propulsion Wheel Wheel Wheel Utility Hardened Light Armor Plating Device Disposable Heat Sink Protection Hardened Light Armor Plating Weapon Medium Laser Energy Gun Medium Laser Energy Cannon Particle Cannon Build | -11 -10 -10 -9 -9 -9 ------- Run | Scr Mat Min Mat Min Exi Slots Evolved 4 | 2 . . 2 . . Power . | . . . . . . Propulsion 1 | 1 . . . . . Utility 1 | . . . 1 . . Weapon 2 | 1 . . 1 . . Parts Attached 23 | 5 2 2 13 . 1 Power 2 | 1 . 1 . . . Engine 2 | 1 . 1 . . . Core . | . . . . . . Reactor . | . . . . . . Propulsion 7 | 2 . 1 4 . . Treads . | . . . . . . Leg . | . . . . . . Wheel 7 | 2 . 1 4 . . Hover . | . . . . . . Flight . | . . . . . . Utility 4 | . . . 3 . 1 Device 2 | . . . 1 . 1 Storage . | . . . . . . Processor . | . . . . . . Hackware . | . . . . . . Protection 2 | . . . 2 . . Artifact . | . . . . . . Weapon 10 | 2 2 . 6 . . Energy Gun 6 | 2 2 . 2 . . Energy Cannon 4 | . . . 4 . . Ballistic Gun . | . . . . . . Ballistic Cannon . | . . . . . . Launcher . | . . . . . . Special Weapon . | . . . . . . Impact Weapon . | . . . . . . Slashing Weapon . | . . . . . . Piercing Weapon . | . . . . . . Special Melee Weapon . | . . . . . . Unidentified Prototypes . | . . . . . . Parts Lost . | . . . . . . Power . | . . . . . . Propulsion . | . . . . . . Utility . | . . . . . . Weapon . | . . . . . . Highest Loss Streak . | . . . . . . Average Slot Usage (%) 92 | . 81 83 98 100 100 Engine 14 | . 16 16 14 12 12 Wheel 29 | . 33 33 28 25 25 Device 7 | . . . 12 12 12 Protection 7 | . . . 12 12 11 Energy Gun 21 | . 31 33 22 . . Energy Cannon 11 | . . . 6 37 37 Naked Turns . | . . . . . . Heaviest Build 27 | 9 9 13 27 27 27 Greatest Support 31 | 31 31 31 31 25 25 Greatest Overweight (x) 1 | . . . 1 1 1 Average Overweight (x) . | . . . . 1 . Largest Inventory Capacity 2 | 1 1 1 2 2 2 Average Capacity 1 | 1 1 1 1 2 2 Most Carried 2 | . . 1 2 2 2 Average Carried . | . . . . 1 2 Final Capacity 2 | 1 1 1 2 2 2 Final Carried 2 | . . . 2 2 2 Class Distribution -------------------- 68% | Mutant 26% | Tank 5% | Scavenger-Mutant Dominant Class ---------------- Mutant | -10/Materials Mutant | -10/Mines Mutant | -9/Materials Tank | -9/Mines Tank | -9/Exiles Resources | -11 -10 -10 -9 -9 -9 ----------- Run | Scr Mat Min Mat Min Exi Matter Collected 420 | 213 57 20 70 60 . Remotely . | . . . . . . Salvage Created 1538 | . 206 674 639 19 . Parts 82 | . 19 23 32 8 . Haulers Intercepted 2 | . . . 2 . . Recyclers Shooed 5 | . . 1 4 . . Parts Field Recycled . | . . . . . . Retrieved Matter . | . . . . . . Parts Self-Destructed . | . . . . . . Prevented . | . . . . . . Kills | -11 -10 -10 -9 -9 -9 ------- Run | Scr Mat Min Mat Min Exi Combat Hostiles Destroyed 34 | . 7 15 9 3 . Guns 28 | . 7 14 7 . . Cannons 5 | . . . 2 3 . Classes Destroyed 10 | . 4 1 3 2 . Worker 1 | . 1 . . . . Builder 1 | . . . . 1 . Tunneler 1 | . . 1 . . . Hauler 2 | . . . 2 . . Recycler 3 | . . . 3 . . Operator 1 | . 1 . . . . Swarmer 11 | . 3 3 5 . . Grunt 19 | . 4 12 1 2 . Sentry 3 | . . . 3 . . Demolisher 1 | . . . . 1 . Thug 1 | . . 1 . . . Best Kill Streak 5 | . 5 5 3 2 . Combat Bots Only 5 | . 3 5 3 2 . Max Kills in Single Turn 1 | . 1 1 1 1 . Gunslinging . | . . . . . . Exploded . | . . . . . . Melee . | . . . . . . Uniques/NPCs Destroyed . | . . . . . . Combat | -11 -10 -10 -9 -9 -9 -------- Run | Scr Mat Min Mat Min Exi Damage Taken 1268 | . 185 759 269 55 . Core 995 | . 144 624 193 34 . Absorbed by Shields . | . . . . . . Redirected to Core 743 | . 134 457 118 34 . Core Remaining (%) 83 | 100 . 67 . . . Volleys Fired 124 | . 16 62 38 8 . Largest 3 | . 2 2 2 3 . Hottest 204 | . 100 100 124 204 . Shots Fired 255 | . 31 124 76 24 . Gun 219 | . 31 124 64 . . Cannon 36 | . . . 12 24 . Launcher . | . . . . . . Special . | . . . . . . Kinetic . | . . . . . . Thermal 254 | . 30 124 76 24 . Explosive . | . . . . . . Electromagnetic 1 | . 1 . . . . Robot Hit Streak 39 | . 7 37 39 5 . Robot Miss Streak 4 | . 1 4 4 2 . Penetration Max . | . . . . . . Secondary Targets 4 | . . 4 . . . Max Gunslinging Chain 1 | . . 1 . . . Shots Hit Robots 183 | . 21 95 55 12 . Core Hits 79 | . 15 34 25 5 . Critical Hits 1 | . . . 1 . . Critical Kills . | . . . . . . Critical Parts Destroyed 1 | . . . 1 . . Melee Attacks . | . . . . . . Impact . | . . . . . . Slashing . | . . . . . . Piercing . | . . . . . . Sneak Attacks . | . . . . . . Combat Hostiles . | . . . . . . Follow-up Attacks . | . . . . . . Damage Inflicted 2526 | . 306 1204 790 226 . Guns 2102 | . 250 1204 648 . . Cannons 368 | . . . 142 226 . Explosions 56 | . 56 . . . . Melee . | . . . . . . Ramming . | . . . . . . Kinetic . | . . . . . . Thermal 2513 | . 293 1204 790 226 . Explosive . | . . . . . . Electromagnetic 13 | . 13 . . . . Impact . | . . . . . . Slashing . | . . . . . . Piercing . | . . . . . . Highest Corruption . | . . . . . . Average Corruption . | . . . . . . Corruption Purged . | . . . . . . Overload Shots . | . . . . . . Overflow Damage 2 | . . . 1 1 . Projectiles 2 | . . . 1 1 . Explosions . | . . . . . . Melee . | . . . . . . Knockbacks . | . . . . . . Impact . | . . . . . . Kinetic . | . . . . . . Secondary . | . . . . . . Self-Inflicted Damage 29 | . 29 . . . . Shots 1 | . 1 . . . . Rammed . | . . . . . . Targets Rammed . | . . . . . . Kicked . | . . . . . . Crushed . | . . . . . . Highest Temperature 195 | . . 22 39 195 . Average Temperature 43 | . . 13 17 63 . Received Heat Transfer 564 | . 54 411 63 36 . Siege Activations . | . . . . . . Robots Corrupted . | . . . . . . Combat Hostiles . | . . . . . . Parts Fried . | . . . . . . Impact Corruptions . | . . . . . . Robots Melted 1 | . . 1 . . . Combat Hostiles 1 | . . 1 . . . Parts Melted 14 | . 2 9 3 . . Heat Transferred 6673 | . 753 3552 1961 407 . Parts Sabotaged . | . . . . . . Parts Stolen . | . . . . . . Parts Stripped . | . . . . . . Power Chain Reactions 1 | . 1 . . . . Missiles Intercepted . | . . . . . . Alert | -11 -10 -10 -9 -9 -9 ------- Run | Scr Mat Min Mat Min Exi Peak Influence 344 | . 202 337 344 219 . Initial 115 | . . 78 100 115 . Average 199 | . 90 251 213 182 . Maximum Alert Level 1 | . 1 1 1 1 . Low Security (%) 53 | 100 97 35 42 71 . Level 1 46 | . 2 64 57 28 . Level 2 . | . . . . . . Level 3 . | . . . . . . Level 4 . | . . . . . . Level 5 . | . . . . . . High Security . | . . . . . . Max Security . | . . . . . . Squads Dispatched 11 | . 6 1 4 . . Investigation 8 | . 4 1 3 . . Extermination . | . . . . . . Reinforcement 3 | . 2 . 1 . . Assault . | . . . . . . Garrison . | . . . . . . Intercept . | . . . . . . Construction Impeded . | . . . . . . Haulers Reinforced . | . . . . . . Stealth | -11 -10 -10 -9 -9 -9 --------- Run | Scr Mat Min Mat Min Exi Distress Signals 3 | . . . 2 1 . Communications Jammed . | . . . . . . Distress Signals . | . . . . . . Times Spotted 63 | . 15 19 25 4 . Peak Tracking Total 4 | . 4 3 4 2 . Tactical Retreats 7 | . 2 1 4 . . Traps | -11 -10 -10 -9 -9 -9 ------- Run | Scr Mat Min Mat Min Exi Traps Triggered 3 | . 1 . 2 . . Indirectly . | . . . . . . Trap Hack Attempts . | . . . . . . Triggered . | . . . . . . Disarmed . | . . . . . . Reprogrammed . | . . . . . . Reused . | . . . . . . Traps Extracted . | . . . . . . Installed . | . . . . . . Triggered . | . . . . . . Machines | -11 -10 -10 -9 -9 -9 ---------- Run | Scr Mat Min Mat Min Exi Machines Disabled 2 | . . . 1 1 . Max in Single Turn 1 | . . . . 1 . Machines Sabotaged . | . . . . . . Garrisons Compromised . | . . . . . . Overloaded Fab Kills . | . . . . . . Fab Network Shutdowns . | . . . . . . Hacking | -11 -10 -10 -9 -9 -9 --------- Run | Scr Mat Min Mat Min Exi Machines Accessed 11 | . 4 2 3 . 2 Terminals 8 | . 4 2 2 . . Fabricators . | . . . . . . Repair Stations . | . . . . . . Recycling Units 1 | . . . 1 . . Scanalyzers . | . . . . . . Garrison Access . | . . . . . . Total Hacks 35 | . 14 7 9 . 5 Successful 19 | . 6 4 4 . 5 Failed 15 | . 7 3 5 . . Catastrophic 4 | . 3 . 1 . . Database Lockouts 1 | . 1 . . . . Manual 21 | . 9 4 7 . 1 Terminals 29 | . 14 7 8 . . Fabricators . | . . . . . . Repair Stations . | . . . . . . Recycling Units 1 | . . . 1 . . Scanalyzers . | . . . . . . Garrison Access . | . . . . . . Terminal Hacks 17 | . 5 4 3 . 5 Record 4 | . . . . . 4 Robot Analysis 1 | . 1 . . . . Prototype ID Bank 7 | . 4 2 1 . . Level Access Points 1 | . . 1 . . . Unreport Threat 1 | . . . 1 . . Hauler Manifests 1 | . . . 1 . . Zone Layout 1 | . . 1 . . . EX-Prototype ID Bank 1 | . . . . . 1 Fabricator Hacks . | . . . . . . Repair Station Hacks . | . . . . . . Recycling Unit Hacks . | . . . . . . Scanalyzer . | . . . . . . Garrison Access Hacks . | . . . . . . Unauthorized Hacks 2 | . 1 . 1 . . Terminals 1 | . 1 . . . . Sabotage 1 | . 1 . . . . Fabricators . | . . . . . . Repair Stations . | . . . . . . Recycling Units 1 | . . . 1 . . Tunnel 1 | . . . 1 . . Scanalyzers . | . . . . . . Garrison Access . | . . . . . . Data Cores Recovered . | . . . . . . Used . | . . . . . . Hacking Detections 8 | . 4 2 2 . . Full Trace Events 6 | . 2 2 2 . . Feedback Events . | . . . . . . Feedback Blocked . | . . . . . . Robot Schematics Acquired . | . . . . . . Robots Built . | . . . . . . Matter . | . . . . . . Time . | . . . . . . Total Robot Build Rating . | . . . . . . Part Schematics Acquired . | . . . . . . Parts Built . | . . . . . . Matter . | . . . . . . Time . | . . . . . . Total Part Build Rating . | . . . . . . Parts Repaired . | . . . . . . Time . | . . . . . . Parts Recycled . | . . . . . . Recycled Matter . | . . . . . . Retrieved Matter . | . . . . . . Retrieved Components . | . . . . . . Parts Scanalyzed . | . . . . . . Part Schematics Acquired . | . . . . . . Parts Damaged . | . . . . . . Bothacking | -11 -10 -10 -9 -9 -9 ------------ Run | Scr Mat Min Mat Min Exi Used RIF Installer . | . . . . . . Robots Hacked . | . . . . . . Non-combat . | . . . . . . Combat . | . . . . . . Robot Hacks Applied . | . . . . . . Relay Couplers Released . | . . . . . . Robots Rewired . | . . . . . . Allies Hacked . | . . . . . . Hacks Repelled . | . . . . . . Allies | -11 -10 -10 -9 -9 -9 -------- Run | Scr Mat Min Mat Min Exi Total Allies 4 | . . 1 . 3 . Largest Group 3 | . . 1 1 3 2 Highest-Rated Group 69 | . . 31 31 69 62 Highest-Rated Ally 31 | . . 31 31 31 31 Total Orders 3 | . . . . . 3 EXPLORE 2 | . . . . . 2 RETURN 1 | . . . . . 1 Ally Attacks 23 | . . . 23 . . Total Damage 378 | . . . 378 . . Kills 7 | . . . 7 . . Allies Corrupted . | . . . . . . Allies Melted . | . . . . . . Intel | -11 -10 -10 -9 -9 -9 ------- Run | Scr Mat Min Mat Min Exi Robot Analysis Total 1 | . 1 . . . . Derelict Logs Recovered 4 | . . 2 . 2 . Drone Launches 1 | . . . . . 1 Drone Recoveries 1 | . . . . . 1 Exploration | -11 -10 -10 -9 -9 -9 ------------- Run | Scr Mat Min Mat Min Exi Turns Passed 1838 | 40 208 523 626 283 158 Spaces Moved 1378 | 39 154 311 488 241 145 Core 1 | 1 . . . . . Treads . | . . . . . . Legs . | . . . . . . Wheels 1377 | 38 154 311 488 241 145 Hover . | . . . . . . Flight . | . . . . . . Fastest Speed 50 | 50 90 90 90 90 80 Average Speed 89 | 84 90 90 90 90 89 Slowest Speed 90 | 90 90 90 90 90 90 Overloaded Moves . | . . . . . . Propulsion Burnouts . | . . . . . . Robots Hopped . | . . . . . . Cave-ins Triggered . | . . . . . . Exploration Rate (%) 53 | 3 40 72 61 55 91 Regions Visited 5 Branch Regions 3 Pre-discovered Areas 2 | . . 1 1 . . Known Exits Taken 1 | . . 1 . . . Unknown Exits Taken 4 | 1 1 . 1 1 . Scrap Searched 3 | . . 1 . 2 . Spaces Dug . | . . . . . . Terrain Destroyed 2 | . 2 . . . . Melee . | . . . . . . Projectile . | . . . . . . AOE 2 | . 2 . . . . Terrain Rammed . | . . . . . . Walls Destroyed . | . . . . . . Machines Disabled . | . . . . . . Actions | -11 -10 -10 -9 -9 -9 --------- Run | Scr Mat Min Mat Min Exi Total 1723 | 43 192 429 597 289 173 Wait 124 | . 9 35 27 28 25 Move 1373 | 38 153 310 487 240 145 Hop . | . . . . . . Pick Up 3 | . . . 2 1 . Fast Attach 16 | 5 2 1 7 . 1 Attach . | . . . . . . Detach . | . . . . . . Swap 7 | . . 1 6 . . Drop 16 | . 2 2 9 1 2 Fire 124 | . 16 62 38 8 . Melee . | . . . . . . Ram . | . . . . . . Kick . | . . . . . . Crush . | . . . . . . Escape Stasis . | . . . . . . Rewire . | . . . . . . Trap . | . . . . . . Miscellaneous 60 | . 10 18 21 11 . Route ------- -11/Scrapyard -10/Materials (discovered 2 exits: *Mat / *Min) -10/Mines (discovered 2 exits: *Mat x2) -9/Materials (discovered 3 exits: [*Mat x2] / [*Min]) -9/Mines -9/Exiles (discovered 2 exits: [*Min x2]) History --------- Turn | Location | Event 1 | -11/Scrapyard | Upgraded with Propulsion slot (x1) 1 | -11/Scrapyard | Upgraded with Weapon slot (x1) 6 | -11/Scrapyard | Discovered new exit (range 17) 41 | -11/Scrapyard | Entered Materials 191 | -10/Materials | Discovered new exit (range 4) 232 | -10/Materials | Discovered new exit (range 12) 243 | -10/Materials | Central database locked down 249 | -10/Materials | Entered Mines 273 | -10/Mines | Met a Derelict bent on vengeance 273 | -10/Mines | Reached level 2 279 | -10/Mines | Identified exit to Materials 291 | -10/Mines | Learned location of Storage (-7) 314 | -10/Mines | Build established: Mutant 742 | -10/Mines | Reached level 3 763 | -10/Mines | Escorted by a lone wolf Derelict 772 | -10/Mines | Entered Materials 772 | -9/Materials | Accompanied by 1 ally 774 | -9/Materials | Reached level 4 851 | -9/Materials | Upgraded with Utility slot (x1) 1055 | -9/Materials | Discovered new exit (range 16) 1067 | -9/Materials | Reached level 5 1297 | -9/Materials | Discovered new exit (range 14) 1345 | -9/Materials | Discovered new exit (range 17) 1349 | -9/Materials | Upgraded with Weapon slot (x1) 1398 | -9/Materials | Entered Mines 1400 | -9/Mines | Reached level 6 1433 | -9/Mines | Learned Materials emergency access door positions 1473 | -9/Mines | Learned location of 1 exit from Materials 1563 | -9/Mines | Assembled infested the area 1597 | -9/Mines | Met 8R-AWN 1635 | -9/Mines | Received a Mining Laser from a helpful Derelict 1647 | -9/Mines | Build established: Tank 1669 | -9/Mines | Discovered new exit (range 5) 1681 | -9/Mines | Entered Exiles 1681 | -9/Exiles | Accompanied by 2 allies 1704 | -9/Exiles | Welcomed by 8R-AWN 1711 | -9/Exiles | Led the pair of lost Derelicts to a safe place 1727 | -9/Exiles | Met EX-HEX 1756 | -9/Exiles | Met EX-BIN 1792 | -9/Exiles | Aligned with FarCom system 1793 | -9/Exiles | Given EX-Vault access code 1815 | -9/Exiles | Opened EX-Vault 1821 | -9/Exiles | Found Supersonic Drone Bay 1826 | -9/Exiles | Discovered new exit (range 57) 1833 | -9/Exiles | Discovered new exit (range 69) 1839 | -9/Exiles | Self-destructed Last Messages --------------- Army-in-a-Box PSU Rigger Chronowheel AWS/Thermal Latent Energy Streamer Gui. Plasma Cannon Firepult YOLO Cannon AWS/Gauss XL Autogun Array AWS/Autocannon Field Lobotomy Kit Longsword +1 Deploy-a-Sentry 01820_ Dropped Hrd. Light Armor Plating. 01821_ Acquired Supersonic Drone Bay. 01823_ Trailblazer released from Supersonic Drone Bay. 01826_ EXIT=FOUND 01838_ Trailblazer retrieved by Supersonic Drone Bay. 01838_ Dropped Supersonic Drone Bay. Map ----- +----------------------------------------------------+ | | | | | | | | | | | | | | | | | | | | | | | | | | | | | | | | | | | | | | | | | | | | | ??????????????????????#########??????????????????? | | ??????????????????????# #??????????????????? | | ??????????????????????#! ! #??????????????????? | | ??????????????????????# g@! #??????????????????? | | ??????????????????????# X#??????????????????? | | ??????????????????????## ##??????????????????? | | ??????????????????????#X #???????????????????? | | ??????????????????????## #???????????????????? | | ???????????????????????# #???????????????????? | | ???????????????????????# #???#####???????????? | | ???????????????????????# #??"""""#???????????? | | ???????????????????????# ## """#???????????? | | ???????????????????????# X""#???????????? | | ???????????????????????# ## """#???????????? | | ???????????????######### #??"""""#???????????? | | ???????????????#""""""## #???#####???????????? | | ???????????????#"""" ## #???????????????????? | | ???????????????#""X" #???????????????????? | | ???????????????#" #???????????????????? | | ???????????????#" ## #???????????????????? | | ???????????????#""""""## #?#########?????????? | | ???????????????##"###### #?#"""""""#?????????? | | ??????????????? "?????# #?#"""""""#?????????? | | ??????????????"""??????# #?#"""""""#?????????? | | ?????????????#"""?????## ###"" """"#?????????? | | ??????????????????????#" """"#?????????? | | ??????????????????????#" """#?????????? | | ??????????????????????#" """#?????????? | +----------------------------------------------------+ Best States ------------- Heat Dissipation 61 Coolant Potential 50 Energy Generation 23 Energy Capacity 250 Matter Stores 300 Matter Capacity 300 Sight Range 17 Terrain Scan Density 10 Armor Coverage 150 Resistance: KI 15 Resistance: TH 15 Evasion (%) 44 Item Schematics ----------------- None Robot Schematics ------------------ None Fabricated ------------ Nothing Alien Tech Used ----------------- None Achievements -------------- None Challenges ------------ None RPGLIKE | -11 -10 -10 -9 -9 -9 --------- Run | Scr Mat Min Mat Min Exi Levels Raised 5 | . . 2 2 1 . XP Earned 11453 | 3000 860 2370 3878 995 350 XP Spent 7210 | 2660 . 1500 1800 1250 . Upgrades 25 | 14 . 5 3 3 . Propulsion Slot 1 | 1 . . . . . Utility Slot 1 | . . . 1 . . Weapon Slot 2 | 1 . . 1 . . Core Integrity 2 | 2 . . . . . Heat Dissipation 6 | 5 . . . 1 . Energy Generation 1 | 1 . . . . . Mass Support 1 | 1 . . . . . Inventory Capacity 2 | 1 . . 1 . . Sight Range 1 | 1 . . . . . Ranged Accuracy 2 | 1 . 1 . . . KI Resistance % 3 | . . 2 . 1 . TH Resistance % 3 | . . 2 . 1 . Protomatter Created 373 | . 65 163 56 89 . Integrity Restored 1196 | . 185 399 417 195 . Core 995 | . 144 399 342 110 . Parts 201 | . 41 . 75 85 . Protomatter Decayed 180 | . . 44 13 123 . Game ------ Seed MediumThermalNanovents Manual? 0 Play Time 00:21:42 Cumulative 526.0 hours Start 2021.07.04 @ 15:34:08 End 2021.07.04 @ 15:55:02 Sessions 1 Manual Loads 0 Difficulty Rogue Special Mode Winter2019/RPGLIKE Game No. 187 Rogue 187 Adventurer 0 Explorer 0 Win Type - Total 39 Types 24/2/7/2/2/0/1/0/1 Lore% 87 Gallery% 94 Achievement% 83 Wizard Run 0 Options --------- ASCII 0 Keyboard 0 Movement Mouse Keybinds 0 Fullscreen 2 Font 12/Smallcaps Map View 83x54 Tactical HUD 1 Map Filters NONE Filters NONE Steam X RUN: 3b3a8249-3e28-4832-8cfd-090c149fb091